[Event "Titled Tuesday Blitz June 29 2021"]
[White "ChessQueen"]
[Black "ozates"]
[WhiteElo "2663"]
[BlackElo "2513"]
[Result "1/2-1/2"]
[Round "07"]
[TimeControl "180+1"]
[Date "2021.06.29"]
[WhiteClock "0:00:35"]
[BlackClock "0:00:11"]

1. e4 {[%clk 0:03:00]}  c5 {[%clk 0:02:56]} 2. c3 {[%clk 0:03:00]}  d5 {[%clk 0:02:54]} 3. exd5 {[%clk 0:03:00]}  Nf6 {[%clk 0:02:52]} 4. d4 {[%clk 0:03:01]}  cxd4 {[%clk 0:02:51]} 5. cxd4 {[%clk 0:02:52]}  Nxd5 {[%clk 0:02:49]} 6. Nf3 {[%clk 0:02:52]}  Nc6 {[%clk 0:02:48]} 7. Nc3 {[%clk 0:02:49]}  Bg4 {[%clk 0:02:48]} 8. Be2 {[%clk 0:02:45]}  e6 {[%clk 0:02:48]} 9. O-O {[%clk 0:02:45]}  Be7 {[%clk 0:02:48]} 10. h3 {[%clk 0:02:43]}  Bh5 {[%clk 0:02:47]} 11. Re1 {[%clk 0:02:34]}  O-O {[%clk 0:02:46]} 12. g4 {[%clk 0:02:32]}  Bg6 {[%clk 0:02:46]} 13. Ne5 {[%clk 0:02:32]}  Nxe5 {[%clk 0:02:39]} 14. dxe5 {[%clk 0:02:32]}  Nxc3 {[%clk 0:02:38]} 15. bxc3 {[%clk 0:02:33]}  Qc7 {[%clk 0:02:35]} 16. Qd4 {[%clk 0:02:07]}  Rfd8 {[%clk 0:02:33]} 17. Qe3 {[%clk 0:02:06]}  Rac8 {[%clk 0:02:29]} 18. Qg3 {[%clk 0:01:43]}  Qxc3 {[%clk 0:02:23]} 19. Be3 {[%clk 0:01:43]}  b6 {[%clk 0:02:09]} 20. h4 {[%clk 0:01:43]}  h6 {[%clk 0:02:06]} 21. h5 {[%clk 0:01:40]}  Bh7 {[%clk 0:02:06]} 22. Ba6 {[%clk 0:01:35]}  Rb8 {[%clk 0:01:49]} 23. Rac1 {[%clk 0:01:34]}  Qa5 {[%clk 0:01:48]} 24. Bc4 {[%clk 0:01:32]}  Ba3 {[%clk 0:01:45]} 25. Rcd1 {[%clk 0:01:31]}  Bc2 {[%clk 0:01:44]} 26. Rxd8+ {[%clk 0:01:25]}  Rxd8 {[%clk 0:01:45]} 27. Rf1 {[%clk 0:01:25]}  Bb2 {[%clk 0:01:37]} 28. Bf4 {[%clk 0:01:17]}  Qc5 {[%clk 0:01:22]} 29. Be2 {[%clk 0:01:07]}  Rd5 {[%clk 0:01:11]} 30. Bf3 {[%clk 0:01:03]}  Rd3 {[%clk 0:01:01]} 31. Re1 {[%clk 0:00:49]}  Qc3 {[%clk 0:00:56]} 32. Re3 {[%clk 0:00:44]}  Rxe3 {[%clk 0:00:55]} 33. fxe3 {[%clk 0:00:45]}  Bc1 {[%clk 0:00:31]} 34. Bg2 {[%clk 0:00:41]}  Qa1 {[%clk 0:00:29]} 35. Kh2 {[%clk 0:00:41]}  Qxa2 {[%clk 0:00:29]} 36. Qf3 {[%clk 0:00:38]}  Kh7 {[%clk 0:00:22]} 37. Qb7 {[%clk 0:00:37]}  Bd3 {[%clk 0:00:18]} 38. Kh3 {[%clk 0:00:35]}  Qf2 {[%clk 0:00:10]} 39. Be4+ {[%clk 0:00:34]}  Bxe4 {[%clk 0:00:10]} 40. Qxe4+ {[%clk 0:00:35]}  Kg8 {[%clk 0:00:10]} 41. Qa8+ {[%clk 0:00:35]}  Kh7 {[%clk 0:00:10]} 42. Qe4+ {[%clk 0:00:35]}  Kg8 {[%clk 0:00:10]} 43. Qa8+ {[%clk 0:00:35]}  Kh7 {[%clk 0:00:11]} 44. Qe4+ {[%clk 0:00:35]} 1/2-1/2


[Site "https://www.chess.com"]

[Event "Titled Tuesday Blitz June 29 2021"]
[White "ChristopherYoo"]
[Black "RobertoJBM"]
[WhiteElo "2932"]
[BlackElo "2668"]
[Result "1-0"]
[Round "07"]
[TimeControl "180+1"]
[Date "2021.06.29"]
[WhiteClock "0:00:21"]
[BlackClock "0:00:12"]

1. e4 {[%clk 0:03:00]}  c6 {[%clk 0:02:59]} 2. d4 {[%clk 0:02:58]}  d5 {[%clk 0:03:00]} 3. exd5 {[%clk 0:02:59]}  cxd5 {[%clk 0:03:00]} 4. c4 {[%clk 0:03:00]}  Nf6 {[%clk 0:03:00]} 5. Nc3 {[%clk 0:03:00]}  e6 {[%clk 0:03:00]} 6. Nf3 {[%clk 0:03:00]}  Be7 {[%clk 0:02:59]} 7. cxd5 {[%clk 0:02:59]}  Nxd5 {[%clk 0:02:59]} 8. Bd3 {[%clk 0:02:59]}  Nc6 {[%clk 0:02:59]} 9. O-O {[%clk 0:03:00]}  O-O {[%clk 0:03:00]} 10. Nxd5 {[%clk 0:02:57]}  Qxd5 {[%clk 0:02:59]} 11. a3 {[%clk 0:02:57]}  Rd8 {[%clk 0:02:58]} 12. Qc2 {[%clk 0:02:56]}  g6 {[%clk 0:02:58]} 13. Be3 {[%clk 0:02:55]}  Bd7 {[%clk 0:02:58]} 14. Be4 {[%clk 0:02:51]}  Qh5 {[%clk 0:02:53]} 15. b4 {[%clk 0:02:40]}  Rac8 {[%clk 0:02:53]} 16. Qb3 {[%clk 0:02:32]}  Bf6 {[%clk 0:02:51]} 17. Rac1 {[%clk 0:02:23]}  b6 {[%clk 0:02:48]} 18. h3 {[%clk 0:02:14]}  Ne7 {[%clk 0:02:43]} 19. Kh2 {[%clk 0:02:13]}  Bc6 {[%clk 0:02:21]} 20. Bxc6 {[%clk 0:01:34]}  Nxc6 {[%clk 0:02:04]} 21. Rc2 {[%clk 0:01:32]}  Ne7 {[%clk 0:01:57]} 22. Rfc1 {[%clk 0:01:30]}  Rxc2 {[%clk 0:01:53]} 23. Rxc2 {[%clk 0:01:31]}  Qd5 {[%clk 0:01:45]} 24. Qa4 {[%clk 0:01:29]}  Qd7 {[%clk 0:01:45]} 25. Qa6 {[%clk 0:01:26]}  Rc8 {[%clk 0:01:39]} 26. Rxc8+ {[%clk 0:01:25]}  Nxc8 {[%clk 0:01:38]} 27. Bf4 {[%clk 0:01:22]}  Ne7 {[%clk 0:01:30]} 28. Be5 {[%clk 0:01:17]}  Bxe5+ {[%clk 0:01:27]} 29. dxe5 {[%clk 0:01:17]}  Nc6 {[%clk 0:01:21]} 30. Qc4 {[%clk 0:01:16]}  Kf8 {[%clk 0:01:09]} 31. h4 {[%clk 0:01:14]}  Qd5 {[%clk 0:01:06]} 32. Qf4 {[%clk 0:01:12]}  Ke8 {[%clk 0:00:56]} 33. h5 {[%clk 0:01:06]}  gxh5 {[%clk 0:00:50]} 34. Qg5 {[%clk 0:01:02]}  Qe4 {[%clk 0:00:42]} 35. Qxh5 {[%clk 0:01:00]}  Qg6 {[%clk 0:00:36]} 36. Qh4 {[%clk 0:00:58]}  Qf5 {[%clk 0:00:35]} 37. Qg3 {[%clk 0:00:56]}  Ne7 {[%clk 0:00:30]} 38. Qg7 {[%clk 0:00:56]}  Nc6 {[%clk 0:00:28]} 39. Kg3 {[%clk 0:00:43]}  h5 {[%clk 0:00:26]} 40. Kh4 {[%clk 0:00:37]}  Ne7 {[%clk 0:00:25]} 41. Qg5 {[%clk 0:00:31]}  Ng6+ {[%clk 0:00:23]} 42. Kxh5 {[%clk 0:00:30]}  Nf4+ {[%clk 0:00:22]} 43. Kh4 {[%clk 0:00:26]}  Qxg5+ {[%clk 0:00:19]} 44. Kxg5 {[%clk 0:00:25]}  Nxg2 {[%clk 0:00:20]} 45. Kg4 {[%clk 0:00:24]}  f6 {[%clk 0:00:13]} 46. exf6 {[%clk 0:00:23]}  e5 {[%clk 0:00:13]} 47. Nxe5 {[%clk 0:00:21]}  Ne1 {[%clk 0:00:12]} 48. Kf5 {[%clk 0:00:21]} 1-0


[Site "https://www.chess.com"]

[Event "Titled Tuesday Blitz June 29 2021"]
[White "Das_Virus_2020"]
[Black "Supernotar"]
[WhiteElo "2571"]
[BlackElo "2700"]
[Result "0-1"]
[Round "07"]
[TimeControl "180+1"]
[Date "2021.06.29"]
[WhiteClock "0:02:35"]
[BlackClock "0:02:17"]

1. e4 {[%clk 0:03:00]}  c6 {[%clk 0:02:59]} 2. d4 {[%clk 0:02:59]}  d5 {[%clk 0:03:00]} 3. Nc3 {[%clk 0:02:59]}  dxe4 {[%clk 0:03:00]} 4. Nxe4 {[%clk 0:03:00]}  Bf5 {[%clk 0:03:01]} 5. Nc5 {[%clk 0:03:00]}  e5 {[%clk 0:02:58]} 6. Nxb7 {[%clk 0:03:00]}  Qb6 {[%clk 0:02:59]} 7. Nc5 {[%clk 0:03:00]}  Bxc5 {[%clk 0:02:59]} 8. dxc5 {[%clk 0:03:01]}  Qxc5 {[%clk 0:03:00]} 9. c3 {[%clk 0:03:01]}  Nf6 {[%clk 0:02:59]} 10. Be3 {[%clk 0:03:00]}  Qe7 {[%clk 0:03:00]} 11. Nf3 {[%clk 0:03:00]}  O-O {[%clk 0:02:57]} 12. Be2 {[%clk 0:03:00]}  Nbd7 {[%clk 0:02:56]} 13. O-O {[%clk 0:03:00]}  Nd5 {[%clk 0:02:50]} 14. Qc1 {[%clk 0:02:58]}  Nxe3 {[%clk 0:02:45]} 15. Qxe3 {[%clk 0:02:59]}  Rfe8 {[%clk 0:02:43]} 16. Rad1 {[%clk 0:02:54]}  Nb6 {[%clk 0:02:40]} 17. b3 {[%clk 0:02:47]}  Nd5 {[%clk 0:02:38]} 18. Qc1 {[%clk 0:02:43]}  Nf4 {[%clk 0:02:35]} 19. Bc4 {[%clk 0:02:40]}  Be6 {[%clk 0:02:19]} 20. Bxe6 {[%clk 0:02:35]}  Ne2+ {[%clk 0:02:17]} 0-1


[Site "https://www.chess.com"]

[Event "Titled Tuesday Blitz June 29 2021"]
[White "DenLaz"]
[Black "DLR7"]
[WhiteElo "2840"]
[BlackElo "2619"]
[Result "1-0"]
[Round "07"]
[TimeControl "180+1"]
[Date "2021.06.29"]
[WhiteClock "0:00:07"]
[BlackClock "0:00:40"]

1. d4 {[%clk 0:03:00]}  Nf6 {[%clk 0:02:59]} 2. c4 {[%clk 0:03:00]}  e6 {[%clk 0:02:58]} 3. Nf3 {[%clk 0:03:00]}  Bb4+ {[%clk 0:02:56]} 4. Bd2 {[%clk 0:03:01]}  Qe7 {[%clk 0:02:56]} 5. g3 {[%clk 0:03:00]}  O-O {[%clk 0:02:48]} 6. Bg2 {[%clk 0:03:00]}  Bxd2+ {[%clk 0:02:46]} 7. Qxd2 {[%clk 0:02:58]}  d5 {[%clk 0:02:45]} 8. O-O {[%clk 0:02:55]}  Rd8 {[%clk 0:02:41]} 9. Qc2 {[%clk 0:02:53]}  b6 {[%clk 0:02:39]} 10. Rc1 {[%clk 0:02:43]}  c6 {[%clk 0:02:37]} 11. Nbd2 {[%clk 0:02:37]}  Nbd7 {[%clk 0:02:35]} 12. e4 {[%clk 0:02:36]}  dxe4 {[%clk 0:02:33]} 13. Nxe4 {[%clk 0:02:35]}  c5 {[%clk 0:02:30]} 14. Nxf6+ {[%clk 0:01:20]}  Nxf6 {[%clk 0:02:31]} 15. Re1 {[%clk 0:01:12]}  cxd4 {[%clk 0:02:29]} 16. Nxd4 {[%clk 0:01:12]}  Bb7 {[%clk 0:02:29]} 17. Bxb7 {[%clk 0:01:09]}  Qxb7 {[%clk 0:02:30]} 18. Rad1 {[%clk 0:01:10]}  Rac8 {[%clk 0:02:24]} 19. Qe2 {[%clk 0:01:09]}  h6 {[%clk 0:02:18]} 20. b3 {[%clk 0:01:08]}  Rd7 {[%clk 0:02:12]} 21. Qf3 {[%clk 0:01:07]}  Qxf3 {[%clk 0:02:09]} 22. Nxf3 {[%clk 0:01:08]}  Rcd8 {[%clk 0:02:08]} 23. Rxd7 {[%clk 0:01:08]}  Rxd7 {[%clk 0:02:09]} 24. Kf1 {[%clk 0:01:08]}  a5 {[%clk 0:02:04]} 25. Ke2 {[%clk 0:01:07]}  Ne4 {[%clk 0:02:03]} 26. Rc1 {[%clk 0:01:04]}  f6 {[%clk 0:02:00]} 27. Rc2 {[%clk 0:00:54]}  Kf7 {[%clk 0:01:58]} 28. Ke3 {[%clk 0:00:54]}  Nd6 {[%clk 0:01:56]} 29. Rd2 {[%clk 0:00:55]}  e5 {[%clk 0:01:51]} 30. g4 {[%clk 0:00:39]}  Ke6 {[%clk 0:01:50]} 31. h4 {[%clk 0:00:31]}  h5 {[%clk 0:01:46]} 32. gxh5 {[%clk 0:00:24]}  Rd8 {[%clk 0:01:36]} 33. Rd5 {[%clk 0:00:20]}  Nf5+ {[%clk 0:01:25]} 34. Ke4 {[%clk 0:00:18]}  Nd6+ {[%clk 0:01:26]} 35. Ke3 {[%clk 0:00:18]}  Rh8 {[%clk 0:01:26]} 36. Ke2 {[%clk 0:00:17]}  Rxh5 {[%clk 0:01:09]} 37. Nd4+ {[%clk 0:00:16]}  Ke7 {[%clk 0:01:09]} 38. Nc6+ {[%clk 0:00:16]}  Kd7 {[%clk 0:01:07]} 39. Nb8+ {[%clk 0:00:09]}  Ke6 {[%clk 0:01:05]} 40. Na6 {[%clk 0:00:07]}  Rxh4 {[%clk 0:01:03]} 41. Nc7+ {[%clk 0:00:07]}  Ke7 {[%clk 0:00:59]} 42. c5 {[%clk 0:00:07]}  bxc5 {[%clk 0:00:58]} 43. Rxc5 {[%clk 0:00:08]}  Re4+ {[%clk 0:00:52]} 44. Kf1 {[%clk 0:00:08]}  Rf4 {[%clk 0:00:52]} 45. Nd5+ {[%clk 0:00:08]}  Ke6 {[%clk 0:00:48]} 46. Nxf4+ {[%clk 0:00:08]}  exf4 {[%clk 0:00:48]} 47. Rxa5 {[%clk 0:00:09]}  g5 {[%clk 0:00:48]} 48. Ra6 {[%clk 0:00:09]}  Ke5 {[%clk 0:00:49]} 49. b4 {[%clk 0:00:09]}  g4 {[%clk 0:00:48]} 50. b5 {[%clk 0:00:09]}  Kd5 {[%clk 0:00:46]} 51. b6 {[%clk 0:00:09]}  Nb7 {[%clk 0:00:44]} 52. a4 {[%clk 0:00:07]}  Kc6 {[%clk 0:00:44]} 53. a5 {[%clk 0:00:08]}  f5 {[%clk 0:00:41]} 54. Ra7 {[%clk 0:00:08]}  f3 {[%clk 0:00:39]} 55. a6 {[%clk 0:00:07]}  Nc5 {[%clk 0:00:38]} 56. b7 {[%clk 0:00:06]}  Kc7 {[%clk 0:00:38]} 57. Ra8 {[%clk 0:00:07]}  Nxb7 {[%clk 0:00:38]} 58. axb7 {[%clk 0:00:06]}  Kxb7 {[%clk 0:00:39]} 59. Rf8 {[%clk 0:00:07]}  Kc6 {[%clk 0:00:40]} 60. Rxf5 {[%clk 0:00:08]}  g3 {[%clk 0:00:40]} 61. fxg3 {[%clk 0:00:07]} 1-0


[Site "https://www.chess.com"]

[Event "Titled Tuesday Blitz June 29 2021"]
[White "DianaLomaia1"]
[Black "ZverevLev"]
[WhiteElo "2369"]
[BlackElo "2536"]
[Result "1-0"]
[Round "07"]
[TimeControl "180+1"]
[Date "2021.06.29"]
[WhiteClock "0:00:08"]
[BlackClock "0:00:04"]

1. d4 {[%clk 0:03:00]}  f5 {[%clk 0:02:57]} 2. g3 {[%clk 0:03:00]}  Nf6 {[%clk 0:02:57]} 3. Bg2 {[%clk 0:03:00]}  g6 {[%clk 0:02:57]} 4. Nf3 {[%clk 0:03:01]}  Bg7 {[%clk 0:02:58]} 5. c4 {[%clk 0:03:02]}  O-O {[%clk 0:02:59]} 6. O-O {[%clk 0:03:02]}  d6 {[%clk 0:02:59]} 7. Nc3 {[%clk 0:03:03]}  Nbd7 {[%clk 0:02:59]} 8. Re1 {[%clk 0:03:02]}  e5 {[%clk 0:02:58]} 9. e4 {[%clk 0:02:57]}  fxe4 {[%clk 0:02:55]} 10. Nxe4 {[%clk 0:02:58]}  Nxe4 {[%clk 0:02:56]} 11. Rxe4 {[%clk 0:02:57]}  Nf6 {[%clk 0:02:57]} 12. Rh4 {[%clk 0:02:57]}  Bg4 {[%clk 0:02:51]} 13. h3 {[%clk 0:02:49]}  Bxf3 {[%clk 0:02:48]} 14. Qxf3 {[%clk 0:02:49]}  g5 {[%clk 0:02:46]} 15. Bxg5 {[%clk 0:02:47]}  Qe8 {[%clk 0:02:43]} 16. dxe5 {[%clk 0:02:41]}  Qxe5 {[%clk 0:02:41]} 17. Bxf6 {[%clk 0:02:30]}  Rxf6 {[%clk 0:02:39]} 18. Qxb7 {[%clk 0:02:29]}  Raf8 {[%clk 0:02:38]} 19. Qd5+ {[%clk 0:02:19]}  Qxd5 {[%clk 0:02:36]} 20. Bxd5+ {[%clk 0:02:18]}  Kh8 {[%clk 0:02:37]} 21. Rf1 {[%clk 0:02:12]}  Bh6 {[%clk 0:02:24]} 22. Re4 {[%clk 0:02:03]}  Rf5 {[%clk 0:02:16]} 23. Re7 {[%clk 0:01:59]}  Bg7 {[%clk 0:02:14]} 24. f4 {[%clk 0:01:51]}  Bxb2 {[%clk 0:02:11]} 25. Rxc7 {[%clk 0:01:51]}  Bd4+ {[%clk 0:02:08]} 26. Kg2 {[%clk 0:01:50]}  Re8 {[%clk 0:02:06]} 27. Bf3 {[%clk 0:01:45]}  Ra5 {[%clk 0:02:04]} 28. h4 {[%clk 0:01:34]}  Rxa2+ {[%clk 0:02:00]} 29. Kh3 {[%clk 0:01:33]}  Ra3 {[%clk 0:02:01]} 30. Bd5 {[%clk 0:01:08]}  a5 {[%clk 0:01:41]} 31. f5 {[%clk 0:00:57]}  Bf6 {[%clk 0:01:33]} 32. Rf3 {[%clk 0:00:46]}  Rxf3 {[%clk 0:01:26]} 33. Bxf3 {[%clk 0:00:47]}  Re3 {[%clk 0:01:13]} 34. Kg4 {[%clk 0:00:47]}  Re7 {[%clk 0:01:06]} 35. Rc8+ {[%clk 0:00:45]}  Kg7 {[%clk 0:01:05]} 36. h5 {[%clk 0:00:45]}  Bc3 {[%clk 0:00:58]} 37. Bd5 {[%clk 0:00:40]}  Kh6 {[%clk 0:00:53]} 38. Rc6 {[%clk 0:00:27]}  Be5 {[%clk 0:00:52]} 39. f6 {[%clk 0:00:20]}  Bxf6 {[%clk 0:00:48]} 40. Rxd6 {[%clk 0:00:20]}  Kg7 {[%clk 0:00:48]} 41. h6+ {[%clk 0:00:21]}  Kg6 {[%clk 0:00:47]} 42. c5 {[%clk 0:00:21]}  a4 {[%clk 0:00:42]} 43. c6 {[%clk 0:00:20]}  a3 {[%clk 0:00:42]} 44. Kf4 {[%clk 0:00:20]}  Ra7 {[%clk 0:00:28]} 45. Be4+ {[%clk 0:00:19]}  Kf7 {[%clk 0:00:28]} 46. Bd5+ {[%clk 0:00:17]}  Kg6 {[%clk 0:00:23]} 47. Be4+ {[%clk 0:00:16]}  Kxh6 {[%clk 0:00:10]} 48. Rxf6+ {[%clk 0:00:10]}  Kg7 {[%clk 0:00:10]} 49. Rd6 {[%clk 0:00:10]}  a2 {[%clk 0:00:10]} 50. Rd7+ {[%clk 0:00:10]}  Rxd7 {[%clk 0:00:09]} 51. cxd7 {[%clk 0:00:10]}  a1=Q {[%clk 0:00:10]} 52. d8=Q {[%clk 0:00:10]}  Qc1+ {[%clk 0:00:10]} 53. Kg4 {[%clk 0:00:08]}  Qc5 {[%clk 0:00:03]} 54. Qg5+ {[%clk 0:00:07]}  Qxg5+ {[%clk 0:00:02]} 55. Kxg5 {[%clk 0:00:08]}  h6+ {[%clk 0:00:03]} 56. Kh5 {[%clk 0:00:06]}  Kh8 {[%clk 0:00:02]} 57. Kxh6 {[%clk 0:00:07]}  Kg8 {[%clk 0:00:02]} 58. g4 {[%clk 0:00:07]}  Kh8 {[%clk 0:00:03]} 59. g5 {[%clk 0:00:07]}  Kg8 {[%clk 0:00:02]} 60. g6 {[%clk 0:00:07]}  Kh8 {[%clk 0:00:03]} 61. g7+ {[%clk 0:00:08]}  Kg8 {[%clk 0:00:04]} 62. Bd5# {[%clk 0:00:08]} 1-0


[Site "https://www.chess.com"]

[Event "Titled Tuesday Blitz June 29 2021"]
[White "ErikRonka"]
[Black "Witik"]
[WhiteElo "2487"]
[BlackElo "2663"]
[Result "1-0"]
[Round "07"]
[TimeControl "180+1"]
[Date "2021.06.29"]
[WhiteClock "0:00:18"]
[BlackClock "0:00:03"]

1. e4 {[%clk 0:03:00]}  c6 {[%clk 0:02:59]} 2. d4 {[%clk 0:03:00]}  d5 {[%clk 0:03:00]} 3. exd5 {[%clk 0:03:01]}  cxd5 {[%clk 0:03:00]} 4. Bd3 {[%clk 0:03:01]}  Nc6 {[%clk 0:03:00]} 5. c3 {[%clk 0:03:01]}  Qc7 {[%clk 0:03:00]} 6. h3 {[%clk 0:02:58]}  g6 {[%clk 0:02:55]} 7. Qc2 {[%clk 0:02:54]}  Bh6 {[%clk 0:02:52]} 8. Bxh6 {[%clk 0:02:31]}  Nxh6 {[%clk 0:02:51]} 9. Qd2 {[%clk 0:02:32]}  Bf5 {[%clk 0:02:34]} 10. Bb5 {[%clk 0:02:27]}  Ng8 {[%clk 0:02:33]} 11. g4 {[%clk 0:02:17]}  Bd7 {[%clk 0:02:28]} 12. Qe3 {[%clk 0:02:16]}  h5 {[%clk 0:02:09]} 13. g5 {[%clk 0:01:55]}  e6 {[%clk 0:02:08]} 14. Nf3 {[%clk 0:01:55]}  Nge7 {[%clk 0:02:08]} 15. Nbd2 {[%clk 0:01:53]}  Nf5 {[%clk 0:02:08]} 16. Qe2 {[%clk 0:01:48]}  Qf4 {[%clk 0:01:43]} 17. Bxc6 {[%clk 0:01:47]}  Bxc6 {[%clk 0:01:41]} 18. Rg1 {[%clk 0:01:42]}  a6 {[%clk 0:01:28]} 19. Ne5 {[%clk 0:01:34]}  Bb5 {[%clk 0:01:27]} 20. Qf3 {[%clk 0:01:34]}  Qxf3 {[%clk 0:01:18]} 21. Ndxf3 {[%clk 0:01:35]}  Ke7 {[%clk 0:01:13]} 22. Kd2 {[%clk 0:01:35]}  Rhc8 {[%clk 0:01:13]} 23. a4 {[%clk 0:01:20]}  Be8 {[%clk 0:01:13]} 24. Ne1 {[%clk 0:01:19]}  Nd6 {[%clk 0:01:10]} 25. N1d3 {[%clk 0:01:17]}  Rab8 {[%clk 0:01:04]} 26. Nc5 {[%clk 0:01:09]}  a5 {[%clk 0:00:58]} 27. b3 {[%clk 0:01:00]}  b6 {[%clk 0:00:57]} 28. Ncd3 {[%clk 0:01:01]}  Ne4+ {[%clk 0:00:55]} 29. Ke3 {[%clk 0:01:01]}  Rxc3 {[%clk 0:00:53]} 30. f3 {[%clk 0:01:01]}  Nd6 {[%clk 0:00:50]} 31. Kd2 {[%clk 0:00:38]}  Rxb3 {[%clk 0:00:28]} 32. Rgb1 {[%clk 0:00:38]}  Rxb1 {[%clk 0:00:27]} 33. Rxb1 {[%clk 0:00:39]}  Bxa4 {[%clk 0:00:26]} 34. Nc5 {[%clk 0:00:37]}  Bb5 {[%clk 0:00:18]} 35. Nb3 {[%clk 0:00:32]}  Rc8 {[%clk 0:00:15]} 36. Nc1 {[%clk 0:00:30]}  Ba4 {[%clk 0:00:09]} 37. Ned3 {[%clk 0:00:28]}  Nc4+ {[%clk 0:00:08]} 38. Ke2 {[%clk 0:00:27]}  Be8 {[%clk 0:00:08]} 39. Na2 {[%clk 0:00:26]}  b5 {[%clk 0:00:08]} 40. Nc5 {[%clk 0:00:25]}  b4 {[%clk 0:00:07]} 41. Nc1 {[%clk 0:00:25]}  e5 {[%clk 0:00:06]} 42. N1b3 {[%clk 0:00:25]}  exd4 {[%clk 0:00:07]} 43. Nd3 {[%clk 0:00:25]}  a4 {[%clk 0:00:06]} 44. Nxd4 {[%clk 0:00:25]}  b3 {[%clk 0:00:06]} 45. Nb4 {[%clk 0:00:25]}  Kd6 {[%clk 0:00:05]} 46. Ra1 {[%clk 0:00:23]}  b2 {[%clk 0:00:04]} 47. Rb1 {[%clk 0:00:23]}  a3 {[%clk 0:00:05]} 48. Na2 {[%clk 0:00:22]}  Rb8 {[%clk 0:00:05]} 49. Kd3 {[%clk 0:00:22]}  Rd8 {[%clk 0:00:05]} 50. Nc2 {[%clk 0:00:22]}  Ba4 {[%clk 0:00:05]} 51. Ncb4 {[%clk 0:00:22]}  Re8 {[%clk 0:00:05]} 52. Nc3 {[%clk 0:00:21]}  Re3+ {[%clk 0:00:04]} 53. Kd4 {[%clk 0:00:21]}  Rxc3 {[%clk 0:00:02]} 54. Kxc3 {[%clk 0:00:21]}  a2 {[%clk 0:00:03]} 55. Nxa2 {[%clk 0:00:19]}  Ke5 {[%clk 0:00:03]} 56. Nb4 {[%clk 0:00:18]}  Kf4 {[%clk 0:00:02]} 57. Nxd5+ {[%clk 0:00:18]}  Kxf3 {[%clk 0:00:02]} 58. Kxc4 {[%clk 0:00:19]}  Kg3 {[%clk 0:00:02]} 59. Rxb2 {[%clk 0:00:19]}  Kxh3 {[%clk 0:00:02]} 60. Rf2 {[%clk 0:00:18]}  Bd7 {[%clk 0:00:01]} 61. Rxf7 {[%clk 0:00:18]}  Be6 {[%clk 0:00:02]} 62. Rf6 {[%clk 0:00:18]}  Bg4 {[%clk 0:00:02]} 63. Kd4 {[%clk 0:00:18]}  Kh4 {[%clk 0:00:02]} 64. Rxg6 {[%clk 0:00:18]}  Kg3 {[%clk 0:00:03]} 65. Rh6 {[%clk 0:00:17]}  h4 {[%clk 0:00:03]} 66. g6 {[%clk 0:00:18]}  h3 {[%clk 0:00:03]} 67. g7 {[%clk 0:00:18]} 1-0


[Site "https://www.chess.com"]

[Event "Titled Tuesday Blitz June 29 2021"]
[White "FMJoseHerrera"]
[Black "Buffy7"]
[WhiteElo "2576"]
[BlackElo "2712"]
[Result "1-0"]
[Round "07"]
[TimeControl "180+1"]
[Date "2021.06.29"]
[WhiteClock "0:00:37"]
[BlackClock "0:00:13"]

1. Nf3 {[%clk 0:03:00]}  c5 {[%clk 0:02:56]} 2. g3 {[%clk 0:03:00]}  Nc6 {[%clk 0:02:57]} 3. Bg2 {[%clk 0:03:01]}  d5 {[%clk 0:02:57]} 4. d3 {[%clk 0:03:01]}  g6 {[%clk 0:02:56]} 5. Nc3 {[%clk 0:03:01]}  Nf6 {[%clk 0:02:54]} 6. h4 {[%clk 0:03:00]}  Bg7 {[%clk 0:02:51]} 7. h5 {[%clk 0:03:00]}  Nxh5 {[%clk 0:02:50]} 8. Bg5 {[%clk 0:03:00]}  Nf6 {[%clk 0:02:46]} 9. Qd2 {[%clk 0:02:59]}  d4 {[%clk 0:02:41]} 10. Nb1 {[%clk 0:02:58]}  Be6 {[%clk 0:02:30]} 11. Na3 {[%clk 0:02:52]}  Bd5 {[%clk 0:02:17]} 12. Bh6 {[%clk 0:02:40]}  Bxh6 {[%clk 0:02:17]} 13. Qxh6 {[%clk 0:02:41]}  Qa5+ {[%clk 0:02:13]} 14. Kf1 {[%clk 0:02:39]}  Qb4 {[%clk 0:02:11]} 15. Qc1 {[%clk 0:02:28]}  Qb6 {[%clk 0:01:58]} 16. Nc4 {[%clk 0:02:27]}  Qc7 {[%clk 0:01:56]} 17. a4 {[%clk 0:02:25]}  Bxc4 {[%clk 0:01:56]} 18. dxc4 {[%clk 0:02:24]}  O-O-O {[%clk 0:01:57]} 19. a5 {[%clk 0:02:20]}  a6 {[%clk 0:01:56]} 20. Ne1 {[%clk 0:02:17]}  e5 {[%clk 0:01:54]} 21. Qg5 {[%clk 0:02:13]}  Nd7 {[%clk 0:01:42]} 22. Nd3 {[%clk 0:02:12]}  f6 {[%clk 0:01:41]} 23. Qh4 {[%clk 0:02:08]}  Qd6 {[%clk 0:01:38]} 24. Rb1 {[%clk 0:01:58]}  f5 {[%clk 0:01:36]} 25. b4 {[%clk 0:01:54]}  Nxb4 {[%clk 0:01:34]} 26. Nxb4 {[%clk 0:01:52]}  cxb4 {[%clk 0:01:35]} 27. Qg5 {[%clk 0:01:45]}  Nc5 {[%clk 0:01:33]} 28. Qd2 {[%clk 0:01:37]}  Ne4 {[%clk 0:01:19]} 29. Qxb4 {[%clk 0:01:19]}  Qxb4 {[%clk 0:01:19]} 30. Rxb4 {[%clk 0:01:20]}  Rd7 {[%clk 0:01:19]} 31. Rh4 {[%clk 0:01:19]}  Nc5 {[%clk 0:01:12]} 32. Bd5 {[%clk 0:01:18]}  h5 {[%clk 0:01:08]} 33. Rb6 {[%clk 0:01:17]}  g5 {[%clk 0:00:53]} 34. Rh2 {[%clk 0:01:16]}  h4 {[%clk 0:00:52]} 35. Kg2 {[%clk 0:01:15]}  Rdh7 {[%clk 0:00:51]} 36. gxh4 {[%clk 0:01:09]}  gxh4 {[%clk 0:00:43]} 37. Rf6 {[%clk 0:01:07]}  h3+ {[%clk 0:00:42]} 38. Kf1 {[%clk 0:01:06]}  Rh5 {[%clk 0:00:35]} 39. Rf7 {[%clk 0:01:01]}  R8h6 {[%clk 0:00:32]} 40. Rg7 {[%clk 0:00:57]}  e4 {[%clk 0:00:28]} 41. Rg3 {[%clk 0:00:53]}  Kc7 {[%clk 0:00:26]} 42. Ke1 {[%clk 0:00:53]}  Kd6 {[%clk 0:00:26]} 43. Kd2 {[%clk 0:00:53]}  Ke5 {[%clk 0:00:26]} 44. Rg8 {[%clk 0:00:53]}  b6 {[%clk 0:00:21]} 45. axb6 {[%clk 0:00:52]}  Rxb6 {[%clk 0:00:21]} 46. Re8+ {[%clk 0:00:52]}  Kf4 {[%clk 0:00:21]} 47. e3+ {[%clk 0:00:52]}  dxe3+ {[%clk 0:00:22]} 48. fxe3+ {[%clk 0:00:51]}  Kg3 {[%clk 0:00:21]} 49. Rh1 {[%clk 0:00:51]}  Kg2 {[%clk 0:00:19]} 50. Re1 {[%clk 0:00:51]}  h2 {[%clk 0:00:18]} 51. Rg8+ {[%clk 0:00:51]}  Kh3 {[%clk 0:00:18]} 52. Kc3 {[%clk 0:00:43]}  Rh4 {[%clk 0:00:17]} 53. Kd4 {[%clk 0:00:42]}  Nd7 {[%clk 0:00:16]} 54. c5 {[%clk 0:00:40]}  Rb4+ {[%clk 0:00:16]} 55. c4 {[%clk 0:00:40]}  Nxc5 {[%clk 0:00:16]} 56. Kxc5 {[%clk 0:00:40]}  Rb2 {[%clk 0:00:16]} 57. Be6 {[%clk 0:00:40]}  Rf2 {[%clk 0:00:16]} 58. Rh1 {[%clk 0:00:39]}  Rg4 {[%clk 0:00:15]} 59. Rh8+ {[%clk 0:00:39]}  Kg3 {[%clk 0:00:16]} 60. Kd5 {[%clk 0:00:36]}  Rg5 {[%clk 0:00:16]} 61. Kd6 {[%clk 0:00:35]}  a5 {[%clk 0:00:13]} 62. c5 {[%clk 0:00:35]}  Rd2+ {[%clk 0:00:13]} 63. Ke7 {[%clk 0:00:34]}  Rc2 {[%clk 0:00:12]} 64. Kf6 {[%clk 0:00:35]}  Rg4 {[%clk 0:00:12]} 65. Bxf5 {[%clk 0:00:35]}  Rf2 {[%clk 0:00:11]} 66. Ke5 {[%clk 0:00:35]}  Rg5 {[%clk 0:00:11]} 67. Rh3+ {[%clk 0:00:35]}  Kg2 {[%clk 0:00:11]} 68. R1xh2+ {[%clk 0:00:35]}  Kg1 {[%clk 0:00:12]} 69. Rxf2 {[%clk 0:00:35]}  Kxf2 {[%clk 0:00:13]} 70. c6 {[%clk 0:00:35]}  a4 {[%clk 0:00:12]} 71. c7 {[%clk 0:00:36]}  Rg8 {[%clk 0:00:12]} 72. c8=Q {[%clk 0:00:36]}  Rxc8 {[%clk 0:00:12]} 73. Bxc8 {[%clk 0:00:37]}  a3 {[%clk 0:00:13]} 74. Be6 {[%clk 0:00:37]} 1-0


[Site "https://www.chess.com"]